[Event "FIDE Women World Blitz 2021"]
[Site "Warsaw"]
[Date "2021.12.29"]
[Round "6.26"]
[White "Kiolbasa, Oliwia"]
[Black "Kashlinskaya, Alina"]
[Result "1/2-1/2"]
[ECO "C43"]
[WhiteElo "2403"]
[BlackElo "2482"]
[Annotator "ChessBase"]
[PlyCount "106"]
[EventDate "2021.12.29"]
[EventType "swiss"]
[EventCountry "POL"]
[Tiebreak "Cut1 Buchholz"]
[SourceTitle "playchess.com"]
[Source "ChessBase"]
[SourceQuality "1"]
[TimeControl "180+2"]

1. e4 {[%emt 0:00:01]} e5 {[%emt 0:00:01]} 2. Nf3 {[%emt 0:00:02]} Nf6 {
[%emt 0:00:02]} 3. d4 {[%emt 0:00:21]} Nxe4 {[%emt 0:00:02]} 4. Bd3 {[%emt 0:
00:01]} d5 {[%emt 0:00:01]} 5. Nxe5 {[%emt 0:00:02]} Nd7 {[%emt 0:00:04]} 6.
Nxd7 Bxd7 {[%emt 0:00:01]} 7. O-O {[%emt 0:00:10]} Bd6 {[%emt 0:00:10]} 8. Qh5
{[%emt 0:00:08]} O-O {[%emt 0:00:04]} 9. Qxd5 {[%emt 0:00:10]} Bc6 {[%emt 0:00:
02]} 10. Qh5 {[%emt 0:00:06]} g6 {[%emt 0:00:02]} 11. Qh6 {[%emt 0:00:05]} Qf6
{[%emt 0:00:26]} 12. c3 {[%emt 0:00:22]} Rfe8 {[%emt 0:00:31]} 13. Be3 {
[%emt 0:00:32]} Bf8 {[%emt 0:00:53]} 14. Qf4 {[%emt 0:00:05]} Qg7 {[%emt 0:00:
14]} 15. Nd2 {[%emt 0:00:18]} Nf6 {[%emt 0:00:16]} 16. Qxc7 {[%emt 0:00:19]}
Nd5 {[%emt 0:00:03]} 17. Qg3 {[%emt 0:00:03]} f5 {[%emt 0:00:10]} 18. Nc4 {
[%emt 0:00:12]} Rad8 {[%emt 0:00:10]} 19. Rfe1 {[%emt 0:00:16]} Bb5 {[%emt 0:
00:19]} 20. a4 {[%emt 0:00:07]} Ba6 {[%emt 0:00:01]} 21. Ne5 {[%emt 0:00:10]}
Bxd3 {[%emt 0:00:01]} 22. Nxd3 {[%emt 0:00:01]} Nf6 {[%emt 0:00:01]} 23. Ne5 {
[%emt 0:00:09]} Ne4 {[%emt 0:00:03]} 24. Qf3 {[%emt 0:00:02]} Bd6 {[%emt 0:00:
02]} 25. Nc4 {[%emt 0:00:02]} Bc7 {[%emt 0:00:02]} 26. Bf4 {[%emt 0:00:02]} Rc8
{[%emt 0:00:04]} 27. Bxc7 {[%emt 0:00:02]} Qxc7 {[%emt 0:00:01]} 28. Ne5 {
[%emt 0:00:01]} Qb6 {[%emt 0:00:01]} 29. Rxe4 {[%emt 0:00:04]} fxe4 {[%emt 0:
00:02]} 30. Qf7+ {[%emt 0:00:02]} Kh8 {[%emt 0:00:01]} 31. Re1 {[%emt 0:00:04]}
Rf8 {[%emt 0:00:01]} 32. Qe7 {[%emt 0:00:01]} Rce8 {[%emt 0:00:06]} 33. Qa3 {
[%emt 0:00:04]} Qf6 {[%emt 0:00:03]} 34. Ng4 {[%emt 0:00:02]} Qf4 {[%emt 0:00:
02]} 35. h3 {[%emt 0:00:02]} Qd2 {[%emt 0:00:02]} 36. Rf1 {[%emt 0:00:01]} Qf4
{[%emt 0:00:05]} 37. Qc5 {[%emt 0:00:01]} h5 {[%emt 0:00:02]} 38. Ne3 {[%emt 0:
00:01]} Rc8 {[%emt 0:00:03]} 39. Qxa7 {[%emt 0:00:02]} Qf7 {[%emt 0:00:01]} 40.
Qb6 {[%emt 0:00:02]} Kh7 {[%emt 0:00:01]} 41. a5 {[%emt 0:00:01]} Rc6 {[%emt 0:
00:01]} 42. Qb5 {[%emt 0:00:01]} Rf6 {[%emt 0:00:01]} 43. Qe2 {[%emt 0:00:03]}
Qb3 {[%emt 0:00:02]} 44. Nd1 {[%emt 0:00:05]} Qa4 {[%emt 0:00:01]} 45. Qxe4 {
[%emt 0:00:02]} R8f7 {[%emt 0:00:04]} 46. b4 {[%emt 0:00:02]} Qa2 {[%emt 0:00:
02]} 47. Qe3 {[%emt 0:00:03]} Qc4 {[%emt 0:00:02]} 48. Nb2 {[%emt 0:00:01]} Qb3
{[%emt 0:00:01]} 49. Nd1 {[%emt 0:00:03]} Qc4 {[%emt 0:00:01]} 50. Nb2 Qb3 {
[%emt 0:00:01]} 51. Nd1 {[%emt 0:00:01]} Qc4 {[%emt 0:00:00]} 52. Nb2 {[%emt 0:
00:05]} Qb3 {[%emt 0:00:01]} 53. Nd1 {[%emt 0:00:01]} Qc4 {[%emt 0:00:01]}
1/2-1/2

[Event "FIDE Women World Blitz 2021"]
[Site "Warsaw"]
[Date "2021.12.29"]
[Round "6.27"]
[White "Movsesian, Julia"]
[Black "Badelka, Olga"]
[Result "0-1"]
[ECO "C54"]
[WhiteElo "2322"]
[BlackElo "2188"]
[Annotator "NA"]
[PlyCount "74"]
[EventDate "2021.12.29"]
[EventType "swiss"]
[EventCountry "POL"]
[Tiebreak "Cut1 Buchholz"]
[SourceTitle "playchess.com"]
[Source "ChessBase"]
[SourceQuality "1"]
[TimeControl "180+2"]

1. e4 {[%emt 0:00:01]} e5 {[%emt 0:00:01]} 2. Nf3 {[%emt 0:00:01]} Nc6 {
[%emt 0:00:01]} 3. Bc4 {[%emt 0:00:01]} Bc5 {[%emt 0:00:01]} 4. c3 {[%emt 0:00:
01]} Nf6 {[%emt 0:00:06]} 5. d3 {[%emt 0:00:01]} h6 {[%emt 0:00:03]} 6. O-O {
[%emt 0:00:03]} d6 {[%emt 0:00:01]} 7. Nbd2 {[%emt 0:00:01]} O-O {[%emt 0:00:
04]} 8. b4 {[%emt 0:00:03]} Bb6 {[%emt 0:00:01]} 9. a4 {[%emt 0:00:00]} a5 {
[%emt 0:00:02]} 10. b5 {[%emt 0:00:06]} Ne7 {[%emt 0:00:01]} 11. h3 {[%emt 0:
00:04]} Ng6 {[%emt 0:00:02]} 12. Bb3 {[%emt 0:00:06]} d5 {[%emt 0:00:03]} 13.
Re1 {[%emt 0:01:02]} dxe4 {[%emt 0:00:08]} 14. Nxe4 {[%emt 0:00:08]} Nxe4 {
[%emt 0:00:32]} 15. dxe4 {[%emt 0:00:01]} Qf6 {[%emt 0:00:01]} 16. Be3 {
[%emt 0:00:23]} Rd8 {[%emt 0:00:09]} 17. Qe2 {[%emt 0:00:01]} Bxe3 {[%emt 0:00:
12]} 18. Qxe3 {[%emt 0:00:02]} Nf4 {[%emt 0:00:03]} 19. Rad1 {[%emt 0:00:40]}
Bxh3 {[%emt 0:00:13]} 20. Nxe5 {[%emt 0:00:30]} Qxe5 {[%emt 0:00:17]} 21. gxh3
{[%emt 0:00:01]} Rxd1 {[%emt 0:00:27]} 22. Bxd1 {[%emt 0:00:01]} Rd8 {[%emt 0:
00:13]} 23. Bc2 {[%emt 0:00:16]} Rd6 {[%emt 0:00:18]} 24. Kh1 {[%emt 0:00:01]}
Rg6 {[%emt 0:00:14]} 25. Qf3 {[%emt 0:00:12]} Rf6 {[%emt 0:00:06]} 26. Qe3 {
[%emt 0:00:01]} Rd6 {[%emt 0:00:12]} 27. Rd1 {[%emt 0:00:02]} Rxd1+ 28. Bxd1 {
[%emt 0:00:01]} g5 {[%emt 0:00:05]} 29. Bg4 {[%emt 0:00:01]} Qd6 {[%emt 0:00:
04]} 30. Bf5 {[%emt 0:00:01]} Qd1+ {[%emt 0:00:02]} 31. Kh2 {[%emt 0:00:01]}
Qf1 {[%emt 0:00:04]} 32. Qg3 {[%emt 0:00:01]} Ne2 {[%emt 0:00:06]} 33. Qg2 {
[%emt 0:00:02]} Qxg2+ 34. Kxg2 {[%emt 0:00:01]} Nxc3 {[%emt 0:00:02]} 35. e5 {
[%emt 0:00:03]} Nxa4 {[%emt 0:00:02]} 36. Kf3 {[%emt 0:00:01]} Nc3 {[%emt 0:00:
02]} 37. Ke3 {[%emt 0:00:01]} Nxb5 {[%emt 0:00:01]} 0-1

[Event "FIDE Women World Blitz 2021"]
[Site "Warsaw"]
[Date "2021.12.29"]
[Round "6.28"]
[White "Injac, Teodora"]
[Black "Ovod, Evgenija"]
[Result "1-0"]
[ECO "E06"]
[WhiteElo "2387"]
[BlackElo "2366"]
[Annotator "NA"]
[PlyCount "85"]
[EventDate "2021.12.29"]
[EventType "swiss"]
[EventCountry "POL"]
[Tiebreak "Cut1 Buchholz"]
[SourceTitle "playchess.com"]
[Source "ChessBase"]
[SourceQuality "1"]
[TimeControl "180+2"]

1. d4 {[%emt 0:00:01]} d5 {[%emt 0:00:00]} 2. c4 {[%emt 0:00:01]} e6 {[%emt 0:
00:01]} 3. Nf3 {[%emt 0:00:01]} Nf6 {[%emt 0:00:01]} 4. g3 Be7 {[%emt 0:00:01]}
5. Bg2 {[%emt 0:00:07]} O-O {[%emt 0:00:01]} 6. Qc2 {[%emt 0:00:01]} c5 {
[%emt 0:00:00]} 7. dxc5 {[%emt 0:00:01]} d4 {[%emt 0:00:08]} 8. b4 {[%emt 0:00:
10]} a5 {[%emt 0:00:01]} 9. b5 {[%emt 0:00:03]} Bxc5 {[%emt 0:00:03]} 10. O-O {
[%emt 0:00:03]} Nbd7 {[%emt 0:00:05]} 11. Nbd2 {[%emt 0:00:18]} a4 {[%emt 0:00:
03]} 12. Rd1 {[%emt 0:00:09]} e5 {[%emt 0:00:11]} 13. Ng5 {[%emt 0:00:02]} h6 {
[%emt 0:00:23]} 14. Nge4 {[%emt 0:00:01]} Nxe4 {[%emt 0:00:08]} 15. Nxe4 {
[%emt 0:00:00]} Qc7 {[%emt 0:00:09]} 16. Nxc5 {[%emt 0:00:10]} Nxc5 {[%emt 0:
00:02]} 17. Ba3 {[%emt 0:00:40]} Be6 {[%emt 0:00:29]} 18. Rac1 {[%emt 0:00:03]}
Rfd8 {[%emt 0:00:20]} 19. e3 {[%emt 0:00:05]} dxe3 {[%emt 0:00:07]} 20. fxe3 {
[%emt 0:00:01]} Rxd1+ {[%emt 0:00:21]} 21. Rxd1 {[%emt 0:00:01]} Rc8 {[%emt 0:
00:03]} 22. Qc3 {[%emt 0:00:20]} b6 {[%emt 0:00:13]} 23. Bc6 {[%emt 0:00:08]}
f6 {[%emt 0:00:11]} 24. Bxc5 {[%emt 0:00:12]} bxc5 25. Qd3 Qf7 {[%emt 0:00:16]}
26. Qd6 {[%emt 0:00:36]} Bxc4 {[%emt 0:00:07]} 27. Qxc5 {[%emt 0:00:01]} Bxa2 {
[%emt 0:00:05]} 28. b6 {[%emt 0:00:01]} Kh8 {[%emt 0:00:12]} 29. Qd6 {[%emt 0:
00:13]} Bb3 {[%emt 0:00:08]} 30. b7 {[%emt 0:00:04]} Qg8 {[%emt 0:00:08]} 31.
bxc8=Q {[%emt 0:00:09]} Qxc8 {[%emt 0:00:01]} 32. Qd8+ {[%emt 0:00:03]} Qxd8 {
[%emt 0:00:01]} 33. Rxd8+ {[%emt 0:00:01]} Kh7 {[%emt 0:00:01]} 34. Ra8 {
[%emt 0:00:05]} Kg6 {[%emt 0:00:03]} 35. Bxa4 {[%emt 0:00:02]} Bd5 {[%emt 0:00:
01]} 36. Ra7 {[%emt 0:00:02]} h5 {[%emt 0:00:02]} 37. h4 {[%emt 0:00:01]} Kh6 {
[%emt 0:00:01]} 38. Kf2 {[%emt 0:00:03]} Be4 {[%emt 0:00:02]} 39. Bb5 {[%emt 0:
00:05]} g5 {[%emt 0:00:01]} 40. Ra6 {[%emt 0:00:04]} Kg6 {[%emt 0:00:02]} 41.
Be8+ {[%emt 0:00:01]} Kg7 {[%emt 0:00:01]} 42. Bxh5 {[%emt 0:00:03]} gxh4 {
[%emt 0:00:01]} 43. gxh4 {[%emt 0:00:01]} 1-0

[Event "FIDE Women World Blitz 2021"]
[Site "Warsaw"]
[Date "2021.12.29"]
[Round "6.29"]
[White "Jarocka, Liwia"]
[Black "Girya, Olga"]
[Result "0-1"]
[ECO "D04"]
[WhiteElo "1851"]
[BlackElo "2402"]
[Annotator "NA"]
[PlyCount "122"]
[EventDate "2021.12.29"]
[EventType "swiss"]
[EventCountry "POL"]
[Tiebreak "Cut1 Buchholz"]
[SourceTitle "playchess.com"]
[Source "ChessBase"]
[SourceQuality "1"]
[TimeControl "180+2"]

1. Nf3 {[%emt 0:00:01]} d5 {[%emt 0:00:01]} 2. b3 {[%emt 0:00:01]} Bf5 {
[%emt 0:00:02]} 3. Bb2 {[%emt 0:00:01]} e6 {[%emt 0:00:04]} 4. e3 {[%emt 0:00:
01]} Nf6 {[%emt 0:00:02]} 5. d4 {[%emt 0:00:01]} h6 {[%emt 0:00:05]} 6. Bd3 {
[%emt 0:00:01]} Bxd3 {[%emt 0:00:11]} 7. Qxd3 {[%emt 0:00:01]} Nbd7 {[%emt 0:
00:05]} 8. O-O {[%emt 0:00:06]} Be7 {[%emt 0:00:02]} 9. Nbd2 {[%emt 0:00:03]}
O-O {[%emt 0:00:02]} 10. c4 {[%emt 0:00:01]} c6 {[%emt 0:00:00]} 11. Rad1 {
[%emt 0:00:07]} a5 {[%emt 0:00:01]} 12. e4 {[%emt 0:00:02]} dxe4 {[%emt 0:00:
06]} 13. Nxe4 {[%emt 0:00:01]} Nxe4 {[%emt 0:00:07]} 14. Qxe4 {[%emt 0:00:01]}
Nf6 {[%emt 0:00:02]} 15. Qe2 {[%emt 0:00:13]} a4 {[%emt 0:00:02]} 16. Ne5 {
[%emt 0:00:06]} axb3 {[%emt 0:00:05]} 17. axb3 {[%emt 0:00:01]} Re8 {[%emt 0:
00:16]} 18. Ra1 {[%emt 0:00:01]} Qb6 {[%emt 0:00:08]} 19. Qc2 {[%emt 0:00:11]}
c5 {[%emt 0:00:11]} 20. Rfd1 {[%emt 0:00:28]} cxd4 {[%emt 0:00:12]} 21. Bxd4 {
[%emt 0:00:06]} Bc5 {[%emt 0:00:01]} 22. Bxc5 {[%emt 0:00:03]} Qxc5 {[%emt 0:
00:01]} 23. Nd3 {[%emt 0:00:05]} Qd4 {[%emt 0:00:07]} 24. Qb2 {[%emt 0:00:35]}
Rxa1 {[%emt 0:00:41]} 25. Qxa1 {[%emt 0:00:01]} Rd8 {[%emt 0:00:05]} 26. Qxd4 {
[%emt 0:00:02]} Rxd4 {[%emt 0:00:00]} 27. Nb2 {[%emt 0:00:01]} Rxd1+ {[%emt 0:
00:08]} 28. Nxd1 {[%emt 0:00:00]} Ne4 {[%emt 0:00:06]} 29. Nb2 {[%emt 0:00:08]}
Kf8 {[%emt 0:00:04]} 30. b4 {[%emt 0:00:05]} Ke7 {[%emt 0:00:04]} 31. f3 {
[%emt 0:00:01]} Nd6 {[%emt 0:00:09]} 32. Kf2 {[%emt 0:00:02]} Nf5 {[%emt 0:00:
01]} 33. g4 {[%emt 0:00:06]} Nd4 {[%emt 0:00:01]} 34. Nd3 {[%emt 0:00:10]} Kd6
{[%emt 0:00:03]} 35. Nc5 {[%emt 0:00:08]} Kc6 {[%emt 0:00:13]} 36. Nd3 {
[%emt 0:00:10]} Kd6 {[%emt 0:00:06]} 37. Nc5 {[%emt 0:00:02]} b6 {[%emt 0:00:
15]} 38. Nd3 {[%emt 0:00:01]} Nc2 {[%emt 0:00:06]} 39. c5+ {[%emt 0:00:03]}
bxc5 {[%emt 0:00:03]} 40. bxc5+ {[%emt 0:00:01]} Kd5 {[%emt 0:00:04]} 41. c6 {
[%emt 0:00:21]} Kd6 {[%emt 0:00:07]} 42. h4 {[%emt 0:00:21]} Nd4 {[%emt 0:00:
01]} 43. Ne5 {[%emt 0:00:14]} f6 {[%emt 0:00:06]} 44. Nf7+ {[%emt 0:00:02]}
Kxc6 {[%emt 0:00:03]} 45. g5 {[%emt 0:00:01]} fxg5 {[%emt 0:00:06]} 46. hxg5 {
[%emt 0:00:02]} h5 {[%emt 0:00:02]} 47. Ne5+ {[%emt 0:00:05]} Kd5 {[%emt 0:00:
01]} 48. Ng6 {[%emt 0:00:01]} Nf5 {[%emt 0:00:02]} 49. Nf4+ {[%emt 0:00:02]}
Ke5 {[%emt 0:00:03]} 50. Nxh5 {[%emt 0:00:01]} Kd5 {[%emt 0:00:04]} 51. Nf4+ {
[%emt 0:00:02]} Ke5 {[%emt 0:00:00]} 52. Nh5 {[%emt 0:00:00]} Kd4 {[%emt 0:00:
02]} 53. Nf4 {[%emt 0:00:10]} e5 {[%emt 0:00:01]} 54. Ne2+ {[%emt 0:00:02]} Kd3
{[%emt 0:00:02]} 55. Nc1+ {[%emt 0:00:04]} Kd4 {[%emt 0:00:02]} 56. Ne2+ {
[%emt 0:00:01]} Kd5 {[%emt 0:00:01]} 57. Nc3+ {[%emt 0:00:01]} Kc4 {[%emt 0:00:
01]} 58. Ne4 {[%emt 0:00:01]} Kd4 {[%emt 0:00:00]} 59. Nd2 {[%emt 0:00:03]} Nd6
{[%emt 0:00:04]} 60. Nb3+ {[%emt 0:00:03]} Kd5 {[%emt 0:00:02]} 61. Nd2 {
[%emt 0:00:01]} Ke6 {[%emt 0:00:01]} 0-1

[Event "FIDE Women World Blitz 2021"]
[Site "Warsaw"]
[Date "2021.12.29"]
[Round "6.30"]
[White "Cyfka, Karina"]
[Black "Dylag, Emilia"]
[Result "1-0"]
[ECO "D38"]
[WhiteElo "2416"]
[BlackElo "1863"]
[Annotator "NA"]
[PlyCount "64"]
[EventDate "2021.12.29"]
[EventType "swiss"]
[EventCountry "POL"]
[Tiebreak "Cut1 Buchholz"]
[SourceTitle "playchess.com"]
[Source "ChessBase"]
[SourceQuality "1"]
[TimeControl "180+2"]

1. d4 {[%emt 0:00:01]} d5 {[%emt 0:00:01]} 2. c4 {[%emt 0:00:02]} e6 {[%emt 0:
00:02]} 3. Nf3 {[%emt 0:00:02]} Nf6 {[%emt 0:00:01]} 4. Nc3 {[%emt 0:00:02]}
Bb4 {[%emt 0:00:02]} 5. Qa4+ {[%emt 0:00:06]} Nc6 {[%emt 0:00:02]} 6. e3 {
[%emt 0:00:01]} O-O {[%emt 0:00:10]} 7. Bd2 {[%emt 0:00:01]} a6 {[%emt 0:00:21]
} 8. Qc2 {[%emt 0:00:07]} b6 {[%emt 0:00:18]} 9. cxd5 {[%emt 0:00:07]} exd5 {
[%emt 0:00:02]} 10. Bd3 {[%emt 0:00:12]} Bb7 {[%emt 0:00:10]} 11. O-O {[%emt 0:
00:04]} Bd6 {[%emt 0:00:09]} 12. a3 {[%emt 0:00:04]} Re8 {[%emt 0:00:30]} 13.
Rfe1 {[%emt 0:00:06]} h6 {[%emt 0:00:08]} 14. Rac1 {[%emt 0:00:14]} Nb8 {
[%emt 0:00:32]} 15. Ne2 {[%emt 0:00:35]} Nbd7 {[%emt 0:00:03]} 16. Qb3 {
[%emt 0:00:17]} Ne4 {[%emt 0:00:13]} 17. Ng3 {[%emt 0:00:38]} Qf6 {[%emt 0:00:
22]} 18. Re2 {[%emt 0:00:16]} c5 {[%emt 0:00:05]} 19. Bb1 {[%emt 0:00:10]} Rac8
{[%emt 0:00:09]} 20. Bc3 {[%emt 0:00:15]} c4 {[%emt 0:00:02]} 21. Qc2 {[%emt 0:
00:04]} b5 {[%emt 0:00:03]} 22. Nd2 {[%emt 0:00:12]} g6 {[%emt 0:00:09]} 23.
Ndxe4 {[%emt 0:00:04]} dxe4 {[%emt 0:00:01]} 24. Qd1 {[%emt 0:00:04]} Nb6 {
[%emt 0:00:06]} 25. d5 {[%emt 0:00:02]} Qd8 {[%emt 0:00:04]} 26. Nxe4 {[%emt 0:
00:03]} Bxd5 {[%emt 0:00:03]} 27. Nf6+ {[%emt 0:00:01]} Kf8 {[%emt 0:00:02]}
28. Rd2 {[%emt 0:00:00]} Rc5 {[%emt 0:00:05]} 29. e4 {[%emt 0:00:00]} Bc6 {
[%emt 0:00:03]} 30. Rxd6 {[%emt 0:00:03]} Qe7 {[%emt 0:00:02]} 31. Nxe8 {
[%emt 0:00:08]} Kxe8 {[%emt 0:00:01]} 32. Bb4 {[%emt 0:00:05]} Rg5 {[%emt 0:00:
02]} 1-0

[Event "FIDE Women World Blitz 2021"]
[Site "Warsaw"]
[Date "2021.12.29"]
[Round "6.31"]
[White "Kucharska, Honorata"]
[Black "Berend, Elvira"]
[Result "1-0"]
[ECO "D94"]
[WhiteElo "2168"]
[BlackElo "2328"]
[Annotator "NA"]
[PlyCount "115"]
[EventDate "2021.12.29"]
[EventType "swiss"]
[EventCountry "POL"]
[Tiebreak "Cut1 Buchholz"]
[SourceTitle "playchess.com"]
[Source "ChessBase"]
[SourceQuality "1"]
[TimeControl "180+2"]

1. d4 {[%emt 0:00:01]} Nf6 {[%emt 0:00:02]} 2. c4 {[%emt 0:00:01]} c5 {[%emt 0:
00:00]} 3. e3 {[%emt 0:00:02]} g6 {[%emt 0:00:03]} 4. Nf3 {[%emt 0:00:01]} Bg7
{[%emt 0:00:01]} 5. Nc3 {[%emt 0:00:02]} O-O {[%emt 0:00:03]} 6. Be2 {[%emt 0:
00:02]} cxd4 {[%emt 0:00:13]} 7. exd4 {[%emt 0:00:01]} d5 {[%emt 0:00:00]} 8.
c5 {[%emt 0:00:09]} Nc6 {[%emt 0:00:01]} 9. O-O {[%emt 0:00:02]} Ne4 {[%emt 0:
00:08]} 10. Be3 {[%emt 0:00:05]} Nxc3 {[%emt 0:00:08]} 11. bxc3 {[%emt 0:00:01]
} b6 {[%emt 0:00:03]} 12. Bb5 {[%emt 0:00:10]} Na5 {[%emt 0:00:10]} 13. cxb6 {
[%emt 0:00:21]} Qxb6 {[%emt 0:00:06]} 14. Rb1 {[%emt 0:00:04]} Qc7 {[%emt 0:00:
01]} 15. Qd2 {[%emt 0:00:33]} Bf5 {[%emt 0:00:19]} 16. Rbc1 {[%emt 0:00:07]}
Nc4 {[%emt 0:00:08]} 17. Bxc4 {[%emt 0:00:02]} Qxc4 {[%emt 0:00:03]} 18. Bh6 {
[%emt 0:00:04]} Rab8 {[%emt 0:00:16]} 19. Bxg7 {[%emt 0:00:04]} Kxg7 {[%emt 0:
00:01]} 20. Ne5 {[%emt 0:00:02]} Qc7 {[%emt 0:00:11]} 21. c4 {[%emt 0:00:06]}
dxc4 {[%emt 0:00:04]} 22. Rxc4 {[%emt 0:00:03]} Qd6 {[%emt 0:00:01]} 23. Rc6 {
[%emt 0:00:11]} Qd5 {[%emt 0:00:04]} 24. Rc5 {[%emt 0:00:02]} Qb7 {[%emt 0:00:
17]} 25. Nc4 {[%emt 0:00:08]} Rbd8 {[%emt 0:00:15]} 26. Ne3 {[%emt 0:00:05]}
Be6 {[%emt 0:00:09]} 27. d5 {[%emt 0:00:02]} Kg8 {[%emt 0:00:07]} 28. Qa5 {
[%emt 0:00:06]} Bd7 {[%emt 0:00:16]} 29. Rc7 {[%emt 0:00:05]} Qb6 {[%emt 0:00:
11]} 30. Qxa7 {[%emt 0:00:07]} Qxa7 {[%emt 0:00:01]} 31. Rxa7 {[%emt 0:00:01]}
e6 {[%emt 0:00:03]} 32. d6 {[%emt 0:00:07]} Bb5 {[%emt 0:00:04]} 33. Rd1 {
[%emt 0:00:02]} Ra8 {[%emt 0:00:03]} 34. Rxa8 {[%emt 0:00:03]} Rxa8 {[%emt 0:
00:00]} 35. Rd2 {[%emt 0:00:04]} Kf8 {[%emt 0:00:05]} 36. h4 {[%emt 0:00:01]}
h6 {[%emt 0:00:01]} 37. Rb2 {[%emt 0:00:08]} Bd3 {[%emt 0:00:13]} 38. Ng4 {
[%emt 0:00:07]} Rd8 {[%emt 0:00:04]} 39. Rb6 {[%emt 0:00:02]} Kg7 {[%emt 0:00:
03]} 40. Ne5 {[%emt 0:00:03]} Be4 {[%emt 0:00:01]} 41. a4 {[%emt 0:00:15]} Kf6
{[%emt 0:00:01]} 42. Ng4+ {[%emt 0:00:02]} Kg7 {[%emt 0:00:01]} 43. a5 {
[%emt 0:00:01]} h5 {[%emt 0:00:01]} 44. Ne3 {[%emt 0:00:02]} Kf6 {[%emt 0:00:
03]} 45. f3 {[%emt 0:00:01]} Bd5 {[%emt 0:00:02]} 46. Nxd5+ exd5 {[%emt 0:00:
00]} 47. a6 {[%emt 0:00:03]} Ke6 {[%emt 0:00:02]} 48. a7 {[%emt 0:00:02]} Ra8 {
[%emt 0:00:01]} 49. Ra6 {[%emt 0:00:01]} Kd7 {[%emt 0:00:05]} 50. Kf2 {[%emt 0:
00:01]} Kc8 {[%emt 0:00:00]} 51. Ke3 {[%emt 0:00:03]} Kb7 {[%emt 0:00:01]} 52.
Ra1 {[%emt 0:00:02]} Kc6 {[%emt 0:00:00]} 53. Kd4 {[%emt 0:00:02]} Kxd6 {
[%emt 0:00:01]} 54. Ra6+ {[%emt 0:00:01]} Ke7 {[%emt 0:00:02]} 55. Kxd5 {
[%emt 0:00:02]} Kd7 56. Ra2 {[%emt 0:00:03]} Kc7 {[%emt 0:00:04]} 57. Ke5 {
[%emt 0:00:02]} Kb7 {[%emt 0:00:02]} 58. Ke4 {[%emt 0:00:05]} 1-0

[Event "FIDE Women World Blitz 2021"]
[Site "Warsaw"]
[Date "2021.12.29"]
[Round "6.32"]
[White "Padmini, Rout"]
[Black "Zawadzka, Jolanta"]
[Result "1/2-1/2"]
[ECO "E03"]
[WhiteElo "2353"]
[BlackElo "2429"]
[Annotator "NA"]
[PlyCount "76"]
[EventDate "2021.12.29"]
[EventType "swiss"]
[EventCountry "POL"]
[Tiebreak "Cut1 Buchholz"]
[SourceTitle "playchess.com"]
[Source "ChessBase"]
[SourceQuality "1"]
[TimeControl "180+2"]

1. c4 {[%emt 0:00:02]} e6 {[%emt 0:00:01]} 2. g3 {[%emt 0:00:02]} d5 {[%emt 0:
00:01]} 3. Bg2 {[%emt 0:00:02]} Nf6 {[%emt 0:00:01]} 4. d4 {[%emt 0:00:05]}
dxc4 {[%emt 0:00:06]} 5. Qa4+ {[%emt 0:00:02]} Nbd7 {[%emt 0:00:04]} 6. Qxc4 {
[%emt 0:00:03]} a6 {[%emt 0:00:17]} 7. Nf3 {[%emt 0:00:03]} b5 {[%emt 0:00:04]}
8. Qc2 {[%emt 0:00:01]} Bb7 {[%emt 0:00:04]} 9. a4 {[%emt 0:00:05]} Bd6 {
[%emt 0:00:07]} 10. Na3 {[%emt 0:00:16]} O-O {[%emt 0:00:10]} 11. O-O {[%emt 0:
00:02]} Be4 {[%emt 0:00:03]} 12. Qd1 {[%emt 0:00:12]} c5 {[%emt 0:00:26]} 13.
Bg5 {[%emt 0:00:10]} Rb8 {[%emt 0:00:03]} 14. axb5 {[%emt 0:00:11]} axb5 {
[%emt 0:00:01]} 15. Nb1 {[%emt 0:00:09]} h6 {[%emt 0:00:11]} 16. Bxf6 {[%emt 0:
00:04]} Nxf6 {[%emt 0:00:02]} 17. Nc3 {[%emt 0:00:01]} Bc6 {[%emt 0:00:10]} 18.
dxc5 {[%emt 0:00:03]} Bxc5 {[%emt 0:00:01]} 19. Qxd8 {[%emt 0:00:08]} Rfxd8 {
[%emt 0:00:01]} 20. Ne5 {[%emt 0:00:01]} Bxg2 {[%emt 0:00:03]} 21. Kxg2 {
[%emt 0:00:02]} Rd2 {[%emt 0:00:15]} 22. Nd3 {[%emt 0:00:06]} Bd4 {[%emt 0:00:
05]} 23. Kf3 {[%emt 0:00:56]} Bxc3 {[%emt 0:00:07]} 24. bxc3 {[%emt 0:00:02]}
Nd5 {[%emt 0:00:02]} 25. Rfc1 {[%emt 0:00:23]} Rc8 {[%emt 0:00:05]} 26. Ra3 {
[%emt 0:00:07]} f5 {[%emt 0:00:08]} 27. Rb3 {[%emt 0:00:03]} Ra2 {[%emt 0:00:
12]} 28. Rxb5 {[%emt 0:00:10]} Ra4 {[%emt 0:00:25]} 29. Nf4 {[%emt 0:00:23]}
Nxf4 {[%emt 0:00:09]} 30. gxf4 {[%emt 0:00:01]} Ra3 {[%emt 0:00:01]} 31. e3 {
[%emt 0:00:03]} Raxc3 {[%emt 0:00:02]} 32. Rxc3 {[%emt 0:00:01]} Rxc3 {[%emt 0:
00:01]} 33. Rb7 {[%emt 0:00:01]} Rc6 {[%emt 0:00:02]} 34. h4 {[%emt 0:00:02]}
Kf8 {[%emt 0:00:04]} 35. h5 {[%emt 0:00:02]} Rc1 {[%emt 0:00:01]} 36. Kg2 {
[%emt 0:00:02]} Rc2 {[%emt 0:00:02]} 37. Kg3 {[%emt 0:00:04]} Rc1 {[%emt 0:00:
02]} 38. Kg2 {[%emt 0:00:01]} Rc2 {[%emt 0:00:03]} 1/2-1/2